fUSD/lending_fUSD_20250814
["ID","MTS","AMOUNT","RATE_DAILY","PERIOD"]
[379124871,1755151928560,-677.79,0.00055616,120]
[379124872,1755151928570,-400.0,0.00055616,120]
[379124873,1755151928579,-400.0,0.00055616,120]
[379124874,1755151928589,-400.0,0.00055616,120]
[379124875,1755151928598,-735.32,0.00055616,120]
[379124876,1755151928607,-400.0,0.00055616,120]
[379124877,1755151928617,-1968.98,0.00055616,120]
[379124878,1755151928627,-953.58,0.00055616,120]
[379124879,1755151928637,-919.31,0.00055616,120]
[379124880,1755151928646,-400.0,0.00055616,120]
[379124881,1755151928655,-926.46,0.00055616,120]
[379124882,1755151928665,-400.0,0.00055616,120]
[379124883,1755151928674,-400.0,0.00055616,120]
[379124884,1755151928684,-400.0,0.00055616,120]
[379124885,1755151928693,-1638.37,0.00055616,120]
[379124886,1755151928703,-2344.2,0.00055616,120]
[379124887,1755151928712,-738.18,0.00055616,120]
[379124888,1755151928722,-300.0,0.00055616,120]
[379124889,1755151928731,-1830.88,0.00055616,120]
[379124890,1755151928740,-400.0,0.00055616,120]
[379124891,1755151928750,-400.0,0.00055616,120]
[379124892,1755151928759,-400.0,0.00055616,120]
[379124893,1755151928769,-400.0,0.00055616,120]
[379124894,1755151928778,-400.0,0.00055616,120]
[379124895,1755151928787,-2134.61,0.00055616,120]
[379124896,1755151928797,-400.0,0.00055616,120]
[379124897,1755151928806,-400.0,0.00055616,120]
[379124898,1755151928815,-1458.72,0.00055616,120]
[379124899,1755151928825,-400.0,0.00055616,120]
[379124900,1755151928835,-1778.19,0.00055616,120]
[379124901,1755151928844,-400.0,0.00055616,120]
[379124902,1755151928854,-400.0,0.00055616,120]
[379124903,1755151928863,-400.0,0.00055616,120]
[379124904,1755151928873,-494.38,0.00055616,120]
[379124905,1755151928884,-400.0,0.00055616,120]
[379124906,1755151928893,-1224.65,0.00055616,120]
[379124907,1755151928903,-400.0,0.00055616,120]
[379124908,1755151928913,-416.33,0.00055616,120]
[379124909,1755151928922,-400.0,0.00055616,16]
[379124910,1755151928932,-400.0,0.00055616,120]
[379124911,1755151928944,-1483.14,0.00055616,120]
[379124912,1755151928954,-663.87,0.00055616,120]
[379124913,1755151928964,-400.0,0.00055616,120]
[379124914,1755151928973,-400.0,0.00055616,120]
[379124915,1755151928982,-400.0,0.00055616,120]
[379124916,1755151928993,-400.0,0.00055616,120]
[379124917,1755151929002,-683.0,0.00055616,120]
[379124918,1755151929012,-898.77,0.00055616,60]
[379124919,1755151929024,-853.09,0.00055616,120]
[379124920,1755151929033,-400.0,0.00055616,14]
[379124921,1755151929043,-400.0,0.00055616,120]
[379124922,1755151929052,-682.62,0.00055616,120]
[379124923,1755151929062,-525.69,0.00055616,120]
[379124924,1755151929072,-400.0,0.00055616,120]
[379124925,1755151929082,-400.0,0.00055616,30]
[379124926,1755151929092,-400.0,0.00055616,120]
[379124927,1755151929101,-400.0,0.00055616,120]
[379124928,1755151929111,-439.52,0.00055616,120]
[379124929,1755151929120,-365.03,0.00055616,120]
[379124930,1755151929134,-400.0,0.00055616,120]
[379124931,1755151929144,-408.74,0.00055616,120]
[379124932,1755151929154,-400.0,0.00055616,120]
[379124933,1755151929164,-633.09,0.00055616,120]
[379124934,1755151929173,-749.16,0.00055616,120]
[379124935,1755151929182,-400.0,0.00055616,120]
[379124936,1755151929191,-400.0,0.00055616,120]
[379124937,1755151929200,-549.77,0.00055616,120]
[379124938,1755151929209,-400.0,0.00055616,120]
[379124939,1755151929219,-1613.96,0.00055616,120]
[379124940,1755151929228,-1832.53,0.00055616,120]
[379124941,1755151929237,-1063.66,0.00055616,120]
[379124942,1755151929247,-400.0,0.00055616,120]
[379124943,1755151929256,-400.0,0.00055616,120]
[379124944,1755151929265,-400.0,0.00055616,120]
[379124945,1755151929275,-526.65,0.00055616,120]
[379124946,1755151929284,-400.0,0.00055616,120]
[379124947,1755151929294,-402.80166054,0.00055616,120]
[379124948,1755151929303,-400.0,0.00055616,120]
[379124949,1755151929313,-400.0,0.00055616,120]
[379124950,1755151929323,-400.0,0.00055616,120]
[379124951,1755151929332,-413.05,0.00055616,120]
[379124952,1755151929342,-400.0,0.00055616,120]
[379124953,1755151929352,-888.91,0.00055616,120]
[379124954,1755151929362,-199.0,0.00055616,50]
[379124955,1755151929371,-1124.78,0.00055616,120]
[379124956,1755151929380,-483.51,0.00055616,120]
[379124957,1755151929390,-400.0,0.00055616,120]
[379124958,1755151929399,-400.0,0.00055616,120]
[379124959,1755151929409,-518.91,0.00055616,120]
[379124960,1755151929418,-537.81,0.00055616,120]
[379124961,1755151929429,-1231.11,0.00055616,120]
[379124962,1755151929438,-400.0,0.00055616,120]
[379124963,1755151929447,-417.32,0.00055616,120]
[379124964,1755151929457,-400.0,0.00055616,120]
[379124965,1755151929466,-400.0,0.00055616,120]
[379124966,1755151929476,-1207.1,0.00055616,120]
[379124967,1755151929485,-400.0,0.00055616,120]
[379124968,1755151929495,-417.19,0.00055616,120]
[379124969,1755151929504,-400.0,0.00055616,120]
[379124970,1755151929514,-400.0,0.00055616,120]
[379124971,1755151929523,-931.84,0.00055616,120]
[379124972,1755151929532,-400.0,0.00055616,120]
[379124973,1755151929542,-400.0,0.00055616,120]
[379124974,1755151929554,-400.0,0.00055616,120]
[379124975,1755151929563,-400.0,0.00055616,120]
[379124976,1755151929573,-400.0,0.00055616,120]
[379124977,1755151929582,-400.0,0.00055616,120]
[379124978,1755151929591,-400.0,0.00055616,120]
[379124979,1755151929601,-1319.73,0.00055616,120]
[379124980,1755151929611,-400.0,0.00055616,120]
[379124981,1755151929621,-400.0,0.00055616,120]
[379124982,1755151929630,-2169.82,0.00055616,120]
[379124983,1755151929639,-400.0,0.00055616,120]
[379124984,1755151929649,-400.0,0.00055616,120]
[379124985,1755151929658,-843.53,0.00055616,120]
[379124986,1755151929667,-400.0,0.00055616,120]
[379124987,1755151929676,-400.0,0.00055616,120]
[379124988,1755151929686,-400.0,0.00055616,120]
[379124989,1755151929695,-400.0,0.00055616,120]
[379124990,1755151929704,-507.06,0.00055616,120]
[379124991,1755151929714,-400.0,0.00055616,120]
[379124992,1755151929723,-1647.52,0.00055616,120]
[379124993,1755151929732,-435.47,0.00055616,120]
[379124994,1755151929742,-1255.35,0.00055616,120]
[379124995,1755151929752,-400.0,0.00055616,120]
[379124996,1755151929761,-400.0,0.00055616,2]
[379124997,1755151929770,-2343.63,0.00055616,120]
[379124998,1755151929780,-400.0,0.00055616,120]
[379124999,1755151929789,-1336.7,0.00055616,120]
[379125000,1755151929799,-152.32516778,0.00055616,120]
[379125001,1755151929808,-1524.01,0.00055616,120]
[379125002,1755151929818,-404.58428752,0.00055616,120]
[379125003,1755151929827,-400.0,0.00055616,120]
[379125004,1755151929837,-1100.6,0.00055616,120]
[379125005,1755151929846,-400.0,0.00055616,120]
[379125006,1755151929855,-400.0,0.00055616,120]
[379125007,1755151929865,-2359.32,0.00055616,120]
[379125008,1755151929874,-400.0,0.00055616,120]
[379125009,1755151929883,-536.21,0.00055616,120]
[379125010,1755151929892,-591.66,0.00055616,120]
[379125011,1755151929902,-400.0,0.00055616,120]
[379125012,1755151929911,-400.0,0.00055616,120]
[379125013,1755151929921,-400.0,0.00055616,120]
[379125014,1755151929930,-400.0,0.00055616,120]
[379125015,1755151929941,-268.43222543,0.00055616,120]
[379125016,1755151929953,-1196.29,0.00055616,120]
[379125017,1755151929963,-400.0,0.00055616,120]
[379125018,1755151929973,-680.02,0.00055616,120]
[379125019,1755151929983,-511.48,0.00055616,120]
[379125020,1755151929993,-1028.17,0.00055616,120]
[379125021,1755151930003,-450.14,0.00055616,120]
[379125022,1755151930012,-400.0,0.00055616,120]
[379125023,1755151930025,-512.79,0.00055616,120]
[379125024,1755151930035,-880.18,0.00055616,120]
[379125025,1755151930046,-411.91,0.00055616,120]
[379125026,1755151930058,-400.0,0.00055616,120]
[379125027,1755151930067,-400.0,0.00055616,120]
[379125028,1755151930077,-2065.78,0.00055616,120]
[379125029,1755151930087,-2269.12,0.00055616,120]
[379125030,1755151930096,-430.86,0.00055616,120]
[379125031,1755151930106,-3933.34,0.00055616,120]
[379125032,1755151930115,-400.0,0.00055616,120]
[379125033,1755151930124,-400.0,0.00055616,120]
[379125034,1755151930134,-400.0,0.00055616,120]
[379125035,1755151930144,-496.83599993,0.00055616,120]
[379125036,1755151930154,-400.0,0.00055616,120]
[379125037,1755151930165,-400.0,0.00055616,120]
[379125038,1755151930175,-567.22,0.00055616,2]
[379125039,1755151930185,-3388.22,0.00055616,120]
[379125040,1755151930195,-400.0,0.00055616,120]
[379125041,1755151930205,-806.62,0.00055616,120]
[379125042,1755151930215,-706.75,0.00055616,120]
[379125043,1755151930226,-3022.65,0.00055616,120]
[379125044,1755151930235,-400.0,0.00055616,120]
[379125045,1755151930244,-1072.62,0.00055616,120]
[379125046,1755151930254,-400.0,0.00055616,120]
[379125047,1755151930263,-474.98,0.00055616,120]
[379125048,1755151930273,-400.0,0.00055616,120]
[379125049,1755151930282,-400.0,0.00055616,120]
[379125050,1755151930292,-400.0,0.00055616,120]
[379125051,1755151930302,-400.0,0.00055616,120]
[379125052,1755151930311,-400.0,0.00055616,120]
[379125053,1755151930321,-400.0,0.00055616,120]
[379125054,1755151930331,-400.0,0.00055616,120]
[379125055,1755151930340,-400.0,0.00055616,120]
[379125056,1755151930349,-400.0,0.00055616,120]
[379125057,1755151930359,-400.0,0.00055616,120]
[379125058,1755151930368,-500.0,0.00055616,120]
[379125059,1755151930378,-400.0,0.00055616,2]
[379125060,1755151930389,-2669.21,0.00055616,120]
[379125061,1755151930399,-400.3,0.00055616,120]
[379125062,1755151930409,-1124.34,0.00055616,120]
[379125063,1755151930421,-400.0,0.00055616,120]
[379125064,1755151930438,-400.0,0.00055616,120]
[379125065,1755151930448,-400.0,0.00055616,120]
[379125066,1755151930458,-400.0,0.00055616,120]
[379125067,1755151930468,-400.0,0.00055616,120]
[379125068,1755151930478,-1646.35,0.00055616,120]
[379125069,1755151930489,-400.0,0.00055616,120]
[379125070,1755151930498,-400.0,0.00055616,30]
[379125071,1755151930508,-986.63,0.00055616,120]
[379125072,1755151930518,-574.51,0.00055616,120]
[379125073,1755151930528,-1010.52,0.00055616,120]
[379125074,1755151930538,-3068.68,0.00055616,120]
[379125075,1755151930548,-400.0,0.00055616,120]
[379125076,1755151930557,-1157.99,0.00055616,120]
[379125077,1755151930567,-1280.68,0.00055616,120]
[379125078,1755151930576,-631.96,0.00055616,120]
[379125079,1755151930586,-400.0,0.00055616,120]
[379125080,1755151930596,-442.43,0.00055616,120]
[379125081,1755151930606,-1231.47,0.00055616,120]
[379125082,1755151930615,-2509.4,0.00055616,120]
[379125083,1755151930625,-930.15,0.00055616,120]
[379125084,1755151930636,-400.0,0.00055616,120]
[379125085,1755151930645,-400.0,0.00055616,120]
[379125086,1755151930655,-400.0,0.00055616,120]
[379125087,1755151930665,-474.55,0.00055616,120]
[379125088,1755151930675,-400.0,0.00055616,120]
[379125089,1755151930684,-400.0,0.00055616,120]
[379125090,1755151930694,-542.34,0.00055616,120]
[379125091,1755151930704,-400.0,0.00055616,120]
[379125092,1755151930714,-400.0,0.00055616,120]
[379125093,1755151930723,-4323.94,0.00055616,120]
[379125094,1755151930733,-1001.49,0.00055616,120]
[379125095,1755151930743,-400.0,0.00055616,120]
[379125096,1755151930753,-1026.06,0.00055616,120]
[379125097,1755151930763,-2393.33,0.00055616,120]
[379125098,1755151930772,-774.99,0.00055616,120]
[379125099,1755151930782,-400.0,0.00055616,120]
[379125100,1755151930792,-4246.54,0.00055616,120]
[379125101,1755151930802,-400.0,0.00055616,120]
[379125102,1755151930811,-2333.02,0.00055616,120]
[379125103,1755151930822,-522.19,0.00055616,120]
[379125104,1755151930832,-400.0,0.00055616,120]
[379125105,1755151930842,-524.14,0.00055616,120]
[379125106,1755151930851,-481.66,0.00055616,120]
[379125107,1755151930861,-400.0,0.00055616,120]
[379125108,1755151930871,-400.0,0.00055616,120]
[379125109,1755151930881,-3378.52,0.00055616,120]
[379125110,1755151930892,-400.0,0.00055616,120]
[379125111,1755151930902,-1270.22,0.00055616,120]
[379125112,1755151930912,-400.0,0.00055616,120]
[379125113,1755151930923,-471.19,0.00055616,120]
[379125114,1755151930934,-596.35,0.00055616,120]
[379125115,1755151930948,-400.0,0.00055616,120]
[379125116,1755151930958,-400.0,0.00055616,120]
[379125117,1755151930968,-400.0,0.00055616,120]
[379125118,1755151930977,-400.0,0.00055616,120]
[379125119,1755151930989,-2137.2,0.00055616,120]
[379125120,1755151930999,-784.0,0.00055616,120]
[379125121,1755151931010,-400.0,0.00055616,120]
[379125122,1755151931021,-1201.9,0.00055616,120]
[379125123,1755151931031,-4803.22,0.00055616,120]
[379125124,1755151931041,-400.0,0.00055616,120]
[379125125,1755151931051,-400.0,0.00055616,120]
[379125126,1755151931061,-2422.17,0.00055616,120]
[379125127,1755151931071,-400.0,0.00055616,120]
[379125128,1755151931082,-400.0,0.00055616,120]
[379125129,1755151931092,-806.69,0.00055616,120]
[379125130,1755151931102,-415.24,0.00055616,2]
[379125131,1755151931112,-776.05,0.00055616,120]
[379125132,1755151931122,-756.82,0.00055616,120]
[379125133,1755151931132,-400.0,0.00055616,120]
[379125134,1755151931143,-400.0,0.00055616,120]
[379125135,1755151931152,-737.75,0.00055616,120]
[379125136,1755151931164,-1099.84,0.00055616,120]
[379125137,1755151931174,-2190.42,0.00055616,120]
[379125138,1755151931184,-443.25,0.00055616,120]
[379125139,1755151931194,-452.45,0.00055616,120]
[379125140,1755151931204,-400.0,0.00055616,120]
[379125141,1755151931214,-1674.15,0.00055616,120]
[379125142,1755151931226,-3816.16,0.00055616,120]
[379125143,1755151931237,-2600.42,0.00055616,120]
[379125144,1755151931247,-400.0,0.00055616,120]
[379125145,1755151931257,-1324.56,0.00055616,120]
[379125146,1755151931267,-500.0,0.00055616,120]
[379125147,1755151931277,-400.0,0.00055616,120]
[379125148,1755151931289,-3126.37,0.00055616,120]
[379125149,1755151931299,-400.0,0.00055616,120]
[379125150,1755151931309,-4802.33,0.00055616,120]
[379125151,1755151931327,-532.53,0.00055616,120]
[379125152,1755151931339,-738.08,0.00055616,120]
[379125153,1755151931350,-400.0,0.00055616,120]
[379125154,1755151931360,-400.0,0.00055616,120]
[379125155,1755151931370,-245.12867612,0.00055616,120]
[379125156,1755151931380,-400.0,0.00055616,120]
[379125157,1755151931391,-451.43,0.00055616,120]
[379125158,1755151931400,-1432.3,0.00055616,120]
[379125159,1755151931411,-1799.4,0.00055616,120]
[379125160,1755151931421,-3657.22,0.00055616,120]
[379125161,1755151931431,-3965.56,0.00055616,120]
[379125162,1755151931441,-4912.44,0.00055616,120]
[379125163,1755151931451,-863.57,0.00055616,120]
[379125164,1755151931460,-865.8,0.00055616,120]
[379125165,1755151931470,-400.0,0.00055616,120]
[379125166,1755151931480,-2237.49,0.00055616,120]
[379125167,1755151931490,-400.0,0.00055616,120]
[379125168,1755151931500,-400.0,0.00055616,120]
[379125169,1755151931510,-1845.1,0.00055616,120]
[379125170,1755151931520,-1326.15,0.00055616,120]
[379125171,1755151931530,-1272.25,0.00055616,120]
[379125172,1755151931540,-2005.83,0.00055616,120]
[379125173,1755151931550,-400.0,0.00055616,120]
[379125174,1755151931560,-972.75,0.00055616,120]
[379125175,1755151931570,-2900.54,0.00055616,120]
[379125176,1755151931580,-1144.13,0.00055616,120]
[379125177,1755151931591,-400.0,0.00055616,120]
[379125178,1755151931601,-509.9929001,0.00055616,60]
[379125179,1755151931611,-2076.9,0.00055616,120]
[379125180,1755151931621,-2172.78,0.00055616,120]
[379125181,1755151931632,-400.0,0.00055616,120]
[379125182,1755151931643,-400.0,0.00055616,120]
[379125183,1755151931652,-2988.88,0.00055616,120]
[379125184,1755151931663,-2430.89,0.00055616,120]
[379125185,1755151931672,-400.0,0.00055616,120]
[379125186,1755151931682,-404.44,0.00055616,120]
[379125187,1755151931692,-569.34,0.00055616,120]
[379125188,1755151931703,-500.2,0.00055616,120]
[379125189,1755151931712,-400.0,0.00055616,120]
[379125190,1755151931722,-400.0,0.00055616,120]
[379125191,1755151931732,-2059.24,0.00055616,120]
[379125192,1755151931741,-400.0,0.00055616,120]
[379125193,1755151931751,-2090.14,0.00055616,120]
[379125194,1755151931761,-756.39,0.00055616,120]
[379125195,1755151931771,-3724.14,0.00055616,120]
[379125196,1755151931781,-400.0,0.00055616,120]
[379125197,1755151931791,-1288.69,0.00055616,120]
[379125198,1755151931801,-433.35,0.00055616,120]
[379125199,1755151931811,-2677.37,0.00055616,120]
[379125200,1755151931822,-642.07,0.00055616,120]
[379125201,1755151931832,-400.0,0.00055616,120]
[379125202,1755151931842,-2452.24,0.00055616,120]
[379125203,1755151931852,-455.81,0.00055616,120]
[379125204,1755151931862,-5534.33,0.00055616,120]
[379125205,1755151931872,-726.09,0.00055616,120]
[379125206,1755151931882,-439.2,0.00055616,120]
[379125207,1755151931894,-1671.75,0.00055616,120]
[379125208,1755151931904,-2660.6,0.00055616,120]
[379125209,1755151931914,-1395.59,0.00055616,120]
[379125210,1755151931924,-400.0,0.00055616,120]
[379125211,1755151931934,-3020.26,0.00055616,120]
[379125212,1755151931948,-400.0,0.00055616,120]
[379125213,1755151931958,-400.0,0.00055616,120]
[379125214,1755151931968,-400.0,0.00055616,120]
[379125215,1755151931979,-451.29826088,0.00055616,120]
[379125216,1755151931990,-400.0,0.00055616,120]
[379125217,1755151932000,-400.0,0.00055616,120]
[379125218,1755151932010,-720.26,0.00055616,120]
[379125219,1755151932024,-400.0,0.00055616,120]
[379125220,1755151932034,-181.90073381,0.00055616,120]
[379125221,1755151932044,-400.0,0.00055616,120]
[379125222,1755151932055,-1133.0,0.00055616,60]
[379125223,1755151932066,-5312.63,0.00055616,120]
[379125224,1755151932076,-722.15,0.00055616,120]
[379125225,1755151932086,-400.0,0.00055616,120]
[379125226,1755151932096,-680.09,0.00055616,120]
[379125227,1755151932106,-3020.77,0.00055616,120]
[379125228,1755151932116,-400.0,0.00055616,120]
[379125229,1755151932127,-400.0,0.00055616,120]
[379125230,1755151932138,-4215.1,0.00055616,120]
[379125231,1755151932148,-1052.61,0.00055616,120]
[379125232,1755151932158,-703.6,0.00055616,120]
[379125233,1755151932449,-400.0,0.00055616,120]
[379125234,1755151932461,-401.73422751,0.00055616,120]
[379125235,1755151932471,-400.0,0.00055616,120]
[379125236,1755151932482,-400.0,0.00055616,120]
[379125237,1755151932491,-400.0,0.00055616,120]
[379125238,1755151932501,-433.78,0.00055616,120]
[379125239,1755151932512,-400.0,0.00055616,120]
[379125240,1755151932521,-627.09,0.00055616,120]
[379125241,1755151932532,-400.0,0.00055616,120]
[379125242,1755151932542,-3691.93,0.00055616,120]
[379125243,1755151932552,-400.0,0.00055616,120]
[379125244,1755151932562,-576.65,0.00055616,120]
[379125245,1755151932572,-443.52,0.00055616,120]
[379125246,1755151932582,-3887.95,0.00055616,120]
[379125247,1755151932591,-1655.04,0.00055616,120]
[379125248,1755151932600,-1229.44,0.00055616,120]
[379125249,1755151932610,-400.0,0.00055616,120]
[379125250,1755151932619,-400.0,0.00055616,120]
[379125251,1755151932629,-408.58941051,0.00055616,120]
[379125252,1755151932641,-831.55,0.00055616,120]
[379125253,1755151932651,-1044.57,0.00055616,120]
[379125254,1755151932660,-400.0,0.00055616,120]
[379125255,1755151932669,-937.86,0.00055616,120]
[379125256,1755151932679,-400.0,0.00055616,120]
[379125257,1755151932689,-400.0,0.00055616,120]
[379125258,1755151932698,-400.0,0.00055616,120]
[379125259,1755151932708,-465.01,0.00055616,120]
[379125260,1755151932717,-400.0,0.00055616,120]
[379125261,1755151932727,-400.0,0.00055616,120]
[379125262,1755151932736,-430.45,0.00055616,120]
[379125263,1755151932745,-400.0,0.00055616,120]
[379125264,1755151932755,-1145.39,0.00055616,120]
[379125265,1755151932764,-400.0,0.00055616,120]
[379125266,1755151932774,-400.0,0.00055616,120]
[379125267,1755151932783,-400.0,0.00055616,120]
[379125268,1755151932792,-727.77,0.00055616,120]
[379125269,1755151932802,-741.62,0.00055616,120]
[379125270,1755151932812,-721.15,0.00055616,120]
[379125271,1755151932821,-400.0,0.00055616,120]
[379125272,1755151932831,-819.26,0.00055616,120]
[379125273,1755151932840,-3068.16,0.00055616,120]
[379125274,1755151932850,-3128.9,0.00055616,120]
[379125275,1755151932859,-400.0,0.00055616,120]
[379125276,1755151932869,-250.0,0.00055616,120]
[379125277,1755151932880,-400.0,0.00055616,120]
[379125278,1755151932891,-400.0,0.00055616,120]
[379125279,1755151932901,-400.0,0.00055616,120]
[379125280,1755151932911,-400.0,0.00055616,120]
[379125281,1755151932921,-809.93,0.00055616,120]
[379125282,1755151932931,-352.73,0.00055616,120]
[379125283,1755151932943,-1496.83,0.00055616,15]
[379125284,1755151932953,-611.84,0.00055616,120]
[379125285,1755151932963,-952.2,0.00055616,120]
[379125286,1755151932972,-400.0,0.00055616,120]
[379125287,1755151932983,-1451.73,0.00055616,120]
[379125288,1755151932992,-400.0,0.00055616,120]
[379125289,1755151933002,-437.35,0.00055616,120]
[379125290,1755151933012,-400.0,0.00055616,120]
[379125291,1755151933023,-400.0,0.00055616,120]
[379125292,1755151933034,-401.24856186,0.00055616,120]
[379125293,1755151933044,-449.19030731,0.00055616,120]
[379125294,1755151933054,-1629.11,0.00055616,120]
[379125295,1755151933063,-400.0,0.00055616,120]
[379125296,1755151933073,-661.99,0.00055616,120]
[379125297,1755151933083,-515.21,0.00055616,120]
[379125298,1755151933092,-400.0,0.00055616,120]
[379125299,1755151933101,-400.0,0.00055616,120]
[379125300,1755151933111,-400.0,0.00055616,120]
[379125301,1755151933121,-400.0,0.00055616,120]
[379125302,1755151933131,-1786.76,0.00055616,120]
[379125303,1755151933141,-400.0,0.00055616,120]
[379125304,1755151933151,-1840.29,0.00055616,120]
[379125305,1755151933161,-400.0,0.00055616,120]
[379125306,1755151933170,-400.0,0.00055616,120]
[379125307,1755151933179,-530.39117,0.00055616,120]
[379125308,1755151933189,-2846.48,0.00055616,120]
[379125309,1755151933198,-400.0,0.00055616,120]
[379125310,1755151933208,-400.0,0.00055616,120]
[379125311,1755151933217,-400.0,0.00055616,120]
[379125312,1755151933227,-3003.6,0.00055616,120]
[379125313,1755151933236,-1972.56,0.00055616,120]
[379125314,1755151933246,-507.26,0.00055616,120]
[379125315,1755151933255,-445.62,0.00055616,120]
[379125316,1755151933265,-400.0,0.00055616,120]
[379125317,1755151933274,-400.0,0.00055616,120]
[379125318,1755151933284,-400.0,0.00055616,120]
[379125319,1755151933293,-459.89,0.00055616,120]
[379125320,1755151933302,-1388.84,0.00055616,120]
[379125321,1755151933312,-1470.66,0.00055616,120]
[379125322,1755151933321,-400.0,0.00055616,120]
[379125323,1755151933331,-400.0,0.00055616,120]
[379125324,1755151933341,-1279.9,0.00055616,120]
[379125325,1755151933350,-400.0,0.00055616,120]
[379125326,1755151933359,-400.0,0.00055616,30]
[379125327,1755151933368,-400.0,0.00055616,120]
[379125328,1755151933378,-1557.49,0.00055616,120]
[379125329,1755151933387,-4796.07,0.00055616,120]
[379125330,1755151933397,-400.0,0.00055616,120]
[379125331,1755151933406,-1397.98,0.00055616,120]
[379125332,1755151933416,-400.0,0.00055616,120]
[379125333,1755151933425,-1255.71,0.00055616,120]
[379125334,1755151933434,-3562.17,0.00055616,120]
[379125335,1755151933444,-400.0,0.00055616,120]
[379125336,1755151933453,-2231.09,0.00055616,120]
[379125337,1755151933463,-594.96,0.00055616,120]
[379125338,1755151933472,-400.0,0.00055616,120]
[379125339,1755151933481,-1188.89,0.00055616,120]
[379125340,1755151933490,-753.54,0.00055616,120]
[379125341,1755151933500,-411.57,0.00055616,120]
[379125342,1755151933509,-400.0,0.00055616,120]
[379125343,1755151933518,-400.0,0.00055616,120]
[379125344,1755151933528,-400.0,0.00055616,120]
[379125345,1755151933537,-2275.13,0.00055616,120]
[379125346,1755151933547,-400.0,0.00055616,120]
[379125347,1755151933556,-4179.34,0.00055616,120]
[379125348,1755151933565,-3602.81,0.00055616,120]
[379125349,1755151933575,-400.0,0.00055616,120]
[379125350,1755151933584,-697.24,0.00055616,120]
[379125351,1755151933593,-400.0,0.00055616,120]
[379125352,1755151933602,-1091.59,0.00055616,120]
[379125353,1755151933612,-400.0,0.00055616,120]
[379125354,1755151933621,-400.0,0.00055616,120]
[379125355,1755151933630,-400.0,0.00055616,120]
[379125356,1755151933641,-657.82,0.00055616,120]
[379125357,1755151933651,-1943.71,0.00055616,120]
[379125358,1755151933661,-1947.43,0.00055616,120]
[379125359,1755151933670,-621.34,0.00055616,120]
[379125360,1755151933679,-400.0,0.00055616,120]
[379125361,1755151933689,-2885.05,0.00055616,120]
[379125362,1755151933698,-1136.53,0.00055616,120]
[379125363,1755151933708,-409.26,0.00055616,120]
[379125364,1755151933718,-400.0,0.00055616,120]
[379125365,1755151933728,-400.0,0.00055616,120]
[379125366,1755151933738,-874.51,0.00055616,120]
[379125367,1755151933748,-1523.92,0.00055616,120]
[379125368,1755151933758,-525.55,0.00055616,120]
[379125369,1755151933768,-400.0,0.00055616,120]
[379125370,1755151933778,-400.0,0.00055616,120]